Cogmind - Beta 10.2 @@@ ROGUE MODE // 2022.02.06 @ 21:08:58 Player: Burgers_Lettuce Result: Self-destructed Performance ------------- Evolutions (4) 2000 Regions Visited (8) 1600 Robots Destroyed (41) 205 Value Destroyed (1439) 1439 Prototype IDs (1) 20 Alien Tech Used (0) 0 Bonus (221) 221 TOTAL SCORE: 5485 Bonus ------- High Alert Combat Kills 239 Follower Combat Kills 97 Friendly Fire -115 Cogmind --------- Core Integrity 447/850 Matter 103/300 Energy 100/100 System Corruption 0% Temperature Cool (0) Movement Core (550) Ox10 Location -6/Factory Parts ------- > --- POWER (1) -------- (None) > --- PROPULSION (4) --- (None) > --- UTILITY (7) ------ Medium Storage Unit Large Storage Unit Advanced Visual Processing Unit Improved Signal Interpreter Improved Targeting Computer > --- WEAPON (3) ------- Heavy Flak Cannon > --- INVENTORY (14) --- Improved Deuterium Engine Cryofiber Web Advanced Heat Sink Medium Storage Unit Medium Storage Unit Medium Storage Unit Improved Core Shielding Improved Medium Armor Plating Heavy Flak Cannon Peak State ------------ > --- POWER ------------ Light Nuclear Core > --- PROPULSION ------- Light Treads Wheel Compact Wheel > --- UTILITY ---------- Medium Storage Unit Large Storage Unit Advanced Visual Processing Unit Improved Targeting Computer Transmission Jammer Improved Medium Armor Plating Hacking Suite > --- WEAPON ----------- Phase Cannon Heavy Flak Cannon EMP Blaster > --- INVENTORY -------- Improved Deuterium Engine Aluminum Leg Carbon-fiber Leg Cryofiber Web Advanced Heat Sink Small Storage Unit Medium Storage Unit Medium Storage Unit Medium Storage Unit Improved Signal Interpreter Electrolaser Heavy Laser Grenade Launcher [Rating: 38] Favorites ----------- Power Light Nuclear Core Engine Ion Engine Power Core Light Nuclear Core Propulsion Wheel Treads Light Treads Leg Aluminum Leg Wheel Wheel Utility Small Storage Unit Device Transmission Jammer Storage Small Storage Unit Processor Improved Targeting Computer Hackware Hacking Suite Protection Light Armor Plating Weapon Heavy Assault Rifle Energy Gun Electrolaser Energy Cannon Phase Cannon Ballistic Gun Heavy Assault Rifle Ballistic Cannon Heavy Flak Cannon Launcher EMP Blaster Slashing Weapon Makeshift Axe Build | -11 -10 -10 -10 -9 -8 -8 -8 -6 ------- Run | Scr Mat Min Exi Min Mat Sto Rec Fac Slots Evolved 8 | . . . . . 4 . . 4 Power . | . . . . . . . . . Propulsion 2 | . . . . . 1 . . 1 Utility 5 | . . . . . 2 . . 3 Weapon 1 | . . . . . 1 . . . Parts Attached 80 | 8 7 4 4 4 13 18 3 19 Power 7 | 1 1 1 . . 3 1 . . Engine 2 | 1 1 . . . . . . . Core 5 | . . 1 . . 3 1 . . Reactor . | . . . . . . . . . Propulsion 15 | 3 1 . . . 4 4 . 3 Treads 4 | 1 1 . . . 1 1 . . Leg 2 | . . . . . . . . 2 Wheel 9 | 2 . . . . 3 3 . 1 Hover . | . . . . . . . . . Flight . | . . . . . . . . . Utility 27 | 1 3 . 2 . 3 6 3 9 Device 4 | . . . . . 2 1 . 1 Storage 8 | 1 . . 1 . . . 2 4 Processor 6 | . . . 1 . . 2 1 2 Hackware 1 | . . . . . . . . 1 Protection 8 | . 3 . . . 1 3 . 1 Artifact . | . . . . . . . . . Weapon 31 | 3 2 3 2 4 3 7 . 7 Energy Gun 17 | 3 2 3 . 1 2 4 . 2 Energy Cannon 1 | . . . . . . . . 1 Ballistic Gun 3 | . . . . 1 . 1 . 1 Ballistic Cannon 2 | . . . . . . . . 2 Launcher 6 | . . . . 2 1 2 . 1 Special Weapon . | . . . . . . . . . Impact Weapon . | . . . . . . . . . Slashing Weapon 2 | . . . 2 . . . . . Piercing Weapon . | . . . . . . . . . Special Melee Weapon . | . . . . . . . . . Unidentified Prototypes 1 | . . . 1 . . . . . Parts Lost 27 | . . 1 . 1 1 8 . 16 Power 3 | . . . . . 1 1 . 1 Propulsion 8 | . . . . 1 . 1 . 6 Utility 3 | . . . . . . 1 . 2 Weapon 13 | . . 1 . . . 5 . 7 Highest Loss Streak 14 | . . 1 . 1 1 6 . 14 Average Slot Usage (%) 97 | . 87 100 99 97 91 92 100 95 Engine 1 | . 14 11 . . . . . . Core 8 | . . 2 14 14 8 5 9 5 Treads 9 | . 12 14 14 11 2 9 9 5 Wheel 16 | . 14 14 14 14 24 18 18 17 Device 1 | . . . . . 3 1 . 4 Storage 17 | . 14 14 14 28 18 18 18 13 Processor 8 | . . . 8 . . 8 17 14 Hackware 1 | . . . . . . . . 5 Protection 4 | . 7 14 4 . 8 6 . 3 Energy Gun 11 | . 24 28 17 2 9 12 9 . Ballistic Gun 5 | . . . . 11 9 5 9 4 Launcher 5 | . . . . 9 9 6 9 5 Slashing Weapon 1 | . . . 10 5 . . . . Naked Turns . | . . . . . . . . . Heaviest Build 57 | 13 16 16 18 24 35 35 27 57 Greatest Support 42 | 20 20 20 10 10 30 26 26 42 Greatest Overweight (x) 13 | 1 1 1 1 2 2 1 1 13 Average Overweight (x) . | . . . 1 1 1 . . . Largest Inventory Capacity 18 | 6 6 6 8 8 8 8 10 18 Average Capacity 8 | 5 6 6 6 8 8 8 8 13 Most Carried 14 | 6 6 6 6 8 8 8 9 14 Average Carried 8 | 3 5 5 6 7 7 7 8 11 Final Capacity 14 | 6 6 6 8 8 8 8 10 14 Final Carried 9 | 6 6 6 6 8 8 8 9 9 Class Distribution -------------------- 43% | Mutant 25% | Commander-Mutant 15% | Scavenger-Mutant 13% | Scavenger-Gunner Dominant Class ---------------- Mutant | -10/Materials Mutant | -10/Mines Mutant | -10/Exiles Mutant | -9/Mines Mutant | -8/Materials Scavenger-Mutant | -8/Storage Commander-Mutant | -8/Recycling Scavenger-Gunner | -6/Factory Resources | -11 -10 -10 -10 -9 -8 -8 -8 -6 ----------- Run | Scr Mat Min Exi Min Mat Sto Rec Fac Matter Collected 1192 | 185 . 100 . 300 167 232 68 140 Remotely . | . . . . . . . . . Salvage Created 1534 | . . 92 . 77 286 773 27 279 Parts 85 | . . 7 . 5 20 37 4 12 Haulers Intercepted . | . . . . . . . . . Recyclers Shooed 2 | . . . . . . 1 1 . Parts Field Recycled . | . . . . . . . . . Retrieved Matter . | . . . . . . . . . Parts Self-Destructed . | . . . . . . . . . Prevented . | . . . . . . . . . Kills | -11 -10 -10 -10 -9 -8 -8 -8 -6 ------- Run | Scr Mat Min Exi Min Mat Sto Rec Fac Combat Hostiles Destroyed 36 | . . 4 . 1 8 11 3 9 Guns 24 | . . 3 . . 7 11 3 . Cannons 5 | . . . . . . . . 5 AOE 6 | . . 1 . 1 . . . 4 Classes Destroyed 8 | . . 2 . 1 2 1 1 1 Builder 1 | . . . . . 1 . . . Recycler 2 | . . . . . . 2 . . Drone 3 | . . . . . . . 3 . Watcher 1 | . . . . . . . . 1 Swarmer 12 | . . 3 . . 5 . . 4 Grunt 8 | . . 1 . 1 2 2 . 2 Sentry 10 | . . . . . 1 7 . 2 Hunter 4 | . . . . 1 . 2 . 1 Best Kill Streak 5 | . . 3 . 1 4 5 1 5 Combat Bots Only 5 | . . 3 . 1 4 4 1 5 Max Kills in Single Turn 3 | . . 1 . 1 1 1 1 3 Gunslinging . | . . . . . . . . . Exploded 3 | . . 1 . 1 . . . 3 Melee . | . . . . . . . . . Uniques/NPCs Destroyed . | . . . . . . . . . Combat | -11 -10 -10 -10 -9 -8 -8 -8 -6 -------- Run | Scr Mat Min Exi Min Mat Sto Rec Fac Damage Taken 3253 | 1 . 161 . 95 285 778 32 1901 Core 496 | . . 17 . . 15 54 7 403 Absorbed by Shields 2 | . . . . . . . 2 . Core Remaining (%) 93 | 100 . . . 93 . . 86 . Volleys Fired 108 | . . 11 . 15 24 32 5 21 Largest 3 | . . 2 . 1 2 3 3 3 Hottest 189 | . . 90 . 55 83 142 119 189 Shots Fired 212 | . . 22 . 15 48 61 12 54 Gun 152 | . . 22 . 1 48 60 10 11 Cannon 31 | . . . . . . . . 31 Launcher 29 | . . . . 14 . 1 2 12 Special . | . . . . . . . . . Kinetic 65 | . . . . . 24 14 5 22 Thermal 78 | . . 12 . . . 41 5 20 Explosive 18 | . . . . 12 . . . 6 Electromagnetic 51 | . . 10 . 3 24 6 2 6 Robot Hit Streak 17 | . . 7 . . 13 13 3 17 Robot Miss Streak 7 | . . 1 . 3 4 2 7 7 Penetration Max 1 | . . . . . 1 . . . Secondary Targets 2 | . . . . . . 2 . . Max Gunslinging Chain 1 | . . . . . . 1 . . Shots Hit Robots 135 | . . 17 . . 32 46 4 36 Core Hits 73 | . . 6 . 2 12 24 3 26 Critical Hits 2 | . . . . . 1 . 1 . Critical Kills 2 | . . . . . 1 . 1 . Critical Parts Destroyed . | . . . . . . . . . Melee Attacks . | . . . . . . . . . Impact . | . . . . . . . . . Slashing . | . . . . . . . . . Piercing . | . . . . . . . . . Sneak Attacks . | . . . . . . . . . Combat Hostiles . | . . . . . . . . . Follow-up Attacks . | . . . . . . . . . Damage Inflicted 3471 | 2 . 213 . 64 701 850 178 1463 Guns 1829 | . . 174 . . 701 763 85 106 Cannons 536 | . . . . . . . . 536 Explosions 1046 | . . 39 . 64 . 87 35 821 Melee . | . . . . . . . . . Ramming 60 | 2 . . . . . . 58 . Kinetic 877 | . . . . . 370 143 50 314 Thermal 1497 | . . 131 . 34 . 543 35 754 Explosive 253 | . . . . 15 . . . 238 Electromagnetic 784 | . . 82 . 15 331 164 35 157 Impact . | . . . . . . . . . Slashing . | . . . . . . . . . Piercing . | . . . . . . . . . Highest Corruption 2 | . 2 2 2 2 . . 1 . Average Corruption 1 | . 2 2 2 2 . . 1 . Corruption Purged . | . . . . . . . . . Effects 15 | . 1 4 5 4 . . 1 . Message Errors 6 | . . 2 2 1 . . 1 . Heat Flow Errors 4 | . 1 . 1 2 . . . . Energy Discharges 3 | . . 1 2 . . . . . Data Loss (minor) 2 | . . 1 . 1 . . . . Overload Shots . | . . . . . . . . . Overflow Damage 110 | . . . . . . . . 110 Projectiles . | . . . . . . . . . Explosions 110 | . . . . . . . . 110 Melee . | . . . . . . . . . Knockbacks 4 | . . . . . . . 1 3 Impact 1 | . . . . . . . 1 . Kinetic 3 | . . . . . . . . 3 Secondary . | . . . . . . . . . Self-Inflicted Damage 144 | 1 . 12 . 84 . . 27 20 Shots 5 | . . 1 . 2 . . . 2 Rammed 8 | 1 . . . . . . 7 . Targets Rammed 8 | 1 . . . . . . 7 . Kicked . | . . . . . . . . . Crushed . | . . . . . . . . . Highest Temperature 509 | . 148 211 100 234 111 210 108 509 Average Temperature 91 | . 78 103 55 93 51 70 49 159 Received Heat Transfer 537 | . . 54 . 6 90 162 . 225 Effects 7 | . . 1 . . . . . 6 Shutdowns 1 | . . . . . . . . 1 Interference 3 | . . 1 . . . . . 2 Matter Decay 1 | . . . . . . . . 1 Short Circuit 2 | . . . . . . . . 2 Siege Activations . | . . . . . . . . . Robots Corrupted 1 | . . . . . 1 . . . Combat Hostiles 1 | . . . . . 1 . . . Parts Fried 1 | . . . . . 1 . . . Impact Corruptions . | . . . . . . . . . Robots Melted . | . . . . . . . . . Combat Hostiles . | . . . . . . . . . Parts Melted . | . . . . . . . . . Heat Transferred 2351 | . . 286 . 50 . 1184 74 757 Parts Sabotaged . | . . . . . . . . . Parts Stolen . | . . . . . . . . . Parts Stripped . | . . . . . . . . . Power Chain Reactions 2 | . . 1 . . . . . 1 Missiles Intercepted . | . . . . . . . . . Alert | -11 -10 -10 -10 -9 -8 -8 -8 -6 ------- Run | Scr Mat Min Exi Min Mat Sto Rec Fac Peak Influence 1185 | . 15 110 . 161 270 289 247 1185 Initial 902 | . . 5 . . . 113 1 902 Average 275 | . 7 57 . 97 146 135 116 901 Maximum Alert Level 4 | . . . . . 1 1 1 4 Low Security (%) 68 | 100 100 100 . 100 63 81 79 . Level 1 10 | . . . . . 36 18 20 . Level 2 . | . . . . . . . . . Level 3 20 | . . . . . . . . 92 Level 4 1 | . . . . . . . . 7 Level 5 . | . . . . . . . . . High Security . | . . . . . . . . . Max Security . | . . . . . . . . . Squads Dispatched 7 | . 1 . . 1 1 1 . 3 Investigation 1 | . . . . 1 . . . . Extermination . | . . . . . . . . . Reinforcement 4 | . 1 . . . 1 1 . 1 Assault 1 | . . . . . . . . 1 Garrison 1 | . . . . . . . . 1 Intercept . | . . . . . . . . . Construction Impeded . | . . . . . . . . . Haulers Reinforced . | . . . . . . . . . Stealth | -11 -10 -10 -10 -9 -8 -8 -8 -6 --------- Run | Scr Mat Min Exi Min Mat Sto Rec Fac Distress Signals 5 | . . . . 2 1 . 2 . Communications Jammed . | . . . . . . . . . Distress Signals . | . . . . . . . . . Times Spotted 86 | . 1 6 . 5 16 14 22 22 Peak Tracking Total 5 | . 2 3 . 3 5 4 3 5 Tactical Retreats 6 | . . 2 . . 2 . . 2 Traps | -11 -10 -10 -10 -9 -8 -8 -8 -6 ------- Run | Scr Mat Min Exi Min Mat Sto Rec Fac Traps Triggered 2 | . 2 . . . . . . . Indirectly . | . . . . . . . . . Trap Hack Attempts . | . . . . . . . . . Triggered . | . . . . . . . . . Disarmed . | . . . . . . . . . Reprogrammed . | . . . . . . . . . Reused . | . . . . . . . . . Traps Extracted . | . . . . . . . . . Installed . | . . . . . . . . . Triggered . | . . . . . . . . . Machines | -11 -10 -10 -10 -9 -8 -8 -8 -6 ---------- Run | Scr Mat Min Exi Min Mat Sto Rec Fac Machines Disabled 9 | . . . . 1 . 2 1 5 Max in Single Turn 2 | . . . . 1 . 1 . 2 Garrison Access 1 | . . . . . . . . 1 Machines Sabotaged . | . . . . . . . . . Garrisons Compromised . | . . . . . . . . . Overloaded Fab Kills . | . . . . . . . . . Fab Network Shutdowns . | . . . . . . . . . Hacking | -11 -10 -10 -10 -9 -8 -8 -8 -6 --------- Run | Scr Mat Min Exi Min Mat Sto Rec Fac Machines Accessed 19 | . 1 . . 1 . 4 11 2 Terminals 12 | . 1 . . . . 4 5 2 Fabricators . | . . . . . . . . . Repair Stations . | . . . . . . . . . Recycling Units 6 | . . . . . . . 6 . Scanalyzers . | . . . . . . . . . Garrison Access . | . . . . . . . . . Total Hacks 41 | . 4 . . 1 . 11 22 3 Successful 30 | . . . . 1 . 8 18 3 Failed 11 | . 4 . . . . 3 4 . Catastrophic 3 | . 1 . . . . . 2 . Database Lockouts . | . . . . . . . . . Manual 19 | . 4 . 2 . . 3 10 . Terminals 28 | . 4 . . . . 11 10 3 Fabricators . | . . . . . . . . . Repair Stations . | . . . . . . . . . Recycling Units 12 | . . . . . . . 12 . Scanalyzers . | . . . . . . . . . Garrison Access . | . . . . . . . . . Terminal Hacks 18 | . . . . 1 . 8 6 3 Record 2 | . . . . . . 1 . 1 Open Door 1 | . . . . 1 . . . . Branch Access Points 1 | . . . . . . . 1 . Emergency Access Points 1 | . . . . . . . . 1 Alert Level 3 | . . . . . . 1 2 . Unreport Threat 3 | . . . . . . 2 1 . Locate Traps 3 | . . . . . . 3 . . Extermination Status 1 | . . . . . . . . 1 Zone Layout 3 | . . . . . . 1 2 . Fabricator Hacks . | . . . . . . . . . Repair Station Hacks . | . . . . . . . . . Recycling Unit Hacks 7 | . . . . . . . 7 . Process 2 | . . . . . . . 2 . Report Inventory 5 | . . . . . . . 5 . Scanalyzer . | . . . . . . . . . Garrison Access Hacks . | . . . . . . . . . Unauthorized Hacks 5 | . . . . . . . 5 . Terminals . | . . . . . . . . . Fabricators . | . . . . . . . . . Repair Stations . | . . . . . . . . . Recycling Units 5 | . . . . . . . 5 . Tunnel 5 | . . . . . . . 5 . Scanalyzers . | . . . . . . . . . Garrison Access . | . . . . . . . . . Data Cores Recovered . | . . . . . . . . . Used . | . . . . . . . . . Hacking Detections 13 | . 1 . . . . 3 8 1 Full Trace Events . | . . . . . . . . . Feedback Events . | . . . . . . . . . Feedback Blocked . | . . . . . . . . . Robot Schematics Acquired . | . . . . . . . . . Robots Built . | . . . . . . . . . Matter . | . . . . . . . . . Time . | . . . . . . . . . Total Robot Build Rating . | . . . . . . . . . Part Schematics Acquired . | . . . . . . . . . Parts Built . | . . . . . . . . . Matter . | . . . . . . . . . Time . | . . . . . . . . . Total Part Build Rating . | . . . . . . . . . Parts Repaired . | . . . . . . . . . Time . | . . . . . . . . . Parts Recycled . | . . . . . . . . . Recycled Matter 27 | . . . . . . . 27 . Retrieved Matter . | . . . . . . . . . Retrieved Components . | . . . . . . . . . Parts Scanalyzed . | . . . . . . . . . Part Schematics Acquired . | . . . . . . . . . Parts Damaged . | . . . . . . . . . Bothacking | -11 -10 -10 -10 -9 -8 -8 -8 -6 ------------ Run | Scr Mat Min Exi Min Mat Sto Rec Fac Used RIF Installer . | . . . . . . . . . Robots Hacked . | . . . . . . . . . Non-combat . | . . . . . . . . . Combat . | . . . . . . . . . Robot Hacks Applied . | . . . . . . . . . Relay Couplers Released . | . . . . . . . . . Robots Rewired 14 | . . . 4 . . . 10 . Allies Hacked . | . . . . . . . . . Hacks Repelled . | . . . . . . . . . Allies | -11 -10 -10 -10 -9 -8 -8 -8 -6 -------- Run | Scr Mat Min Exi Min Mat Sto Rec Fac Total Allies 14 | . . . 4 . . . 10 . Largest Group 10 | . . . 4 4 3 . 10 3 Highest-Rated Group 114 | . . . 45 45 24 . 114 40 Highest-Rated Ally 24 | . . . 21 21 8 . 24 15 Total Orders 2 | . . . . . . . 2 . ROAM 1 | . . . . . . . 1 . FOLLOW 1 | . . . . . . . 1 . Ally Attacks 165 | . . . . 18 5 . 138 4 Total Damage 1302 | . . . . 151 33 . 1015 103 Kills 36 | . . . . 4 3 . 28 1 Allies Corrupted . | . . . . . . . . . Allies Melted . | . . . . . . . . . Intel | -11 -10 -10 -10 -9 -8 -8 -8 -6 ------- Run | Scr Mat Min Exi Min Mat Sto Rec Fac Robot Analysis Total . | . . . . . . . . . Derelict Logs Recovered 4 | . . 3 . 1 . . . . Drone Launches . | . . . . . . . . . Drone Recoveries . | . . . . . . . . . Exploration | -11 -10 -10 -10 -9 -8 -8 -8 -6 ------------- Run | Scr Mat Min Exi Min Mat Sto Rec Fac Turns Passed 3718 | 52 77 502 457 434 220 417 849 710 Spaces Moved 2635 | 40 63 320 448 400 123 303 652 286 Core 3 | 1 . . . . . . . 2 Treads 229 | . 14 215 . . . . . . Legs 8 | . . . . . . . . 8 Wheels 2395 | 39 49 105 448 400 123 303 652 276 Hover . | . . . . . . . . . Flight . | . . . . . . . . . Fastest Speed 50 | 50 80 90 90 90 80 90 90 93 Average Speed 99 | 84 105 137 90 96 90 90 94 105 Slowest Speed 700 | 90 160 160 90 100 100 90 100 700 Overloaded Moves . | . . . . . . . . . Propulsion Burnouts . | . . . . . . . . . Robots Hopped . | . . . . . . . . . Cave-ins Triggered . | . . . . . . . . . Exploration Rate (%) 47 | 3 22 76 91 72 12 48 96 11 Regions Visited 8 Branch Regions 5 Pre-discovered Areas 7 | . . 2 . . . . 5 . Known Exits Taken . | . . . . . . . . . Unknown Exits Taken 8 | 1 1 1 1 1 1 1 1 . Scrap Searched 2 | . . 1 . 1 . . . . Spaces Dug 85 | . . . . 85 . . . . Terrain Destroyed 159 | . . 4 . 100 1 . . 54 Melee . | . . . . . . . . . Projectile 6 | . . . . . 1 . . 5 AOE 153 | . . 4 . 100 . . . 49 Terrain Rammed . | . . . . . . . . . Walls Destroyed . | . . . . . . . . . Machines Disabled . | . . . . . . . . . Actions | -11 -10 -10 -10 -9 -8 -8 -8 -6 --------- Run | Scr Mat Min Exi Min Mat Sto Rec Fac Total 3517 | 54 71 361 501 436 184 388 874 648 Wait 473 | . . 25 7 3 12 21 104 301 Move 2628 | 40 62 319 447 399 122 302 651 286 Hop . | . . . . . . . . . Pick Up 44 | 5 1 . . 7 5 6 4 16 Fast Attach 31 | 7 7 1 4 1 5 6 . . Attach 21 | . . 1 . 1 3 4 . 12 Detach 5 | 1 . 1 1 1 . . . 1 Swap 28 | 1 . 2 . 2 5 8 3 7 Drop 37 | . 1 1 3 7 8 9 4 4 Fire 108 | . . 11 . 15 24 32 5 21 Melee . | . . . . . . . . . Ram 7 | . . . . . . . 7 . Kick . | . . . . . . . . . Crush . | . . . . . . . . . Escape Stasis . | . . . . . . . . . Rewire 135 | . . . 39 . . . 96 . Trap . | . . . . . . . . . Miscellaneous . | . . . . . . . . . Route ------- -11/Scrapyard -10/Materials -10/Mines (discovered 2 exits: [*Mat] / *Exi) -10/Exiles -9/Mines -8/Materials (discovered 2 exits: Fac / *Sto) -8/Storage -8/Recycling -6/Factory History --------- Turn | Location | Event 13 | -11/Scrapyard | Discovered new exit (range 15) 53 | -11/Scrapyard | Entered Materials 124 | -10/Materials | Discovered new exit (range 5) 130 | -10/Materials | Entered Mines 292 | -10/Mines | Learned location of 1 exit from Materials 305 | -10/Mines | Build established: Mutant 332 | -10/Mines | Learned Materials stockpile data 341 | -10/Mines | Learned location of Storage (-8) 614 | -10/Mines | Discovered new exit (range 10) 628 | -10/Mines | Deemed a non-threat by the Exiles lab entrance 629 | -10/Mines | Discovered new exit (range 5) 632 | -10/Mines | Entered Exiles 632 | -10/Exiles | Found Exiles lab destroyed 788 | -10/Exiles | Opened EX-Vault 791 | -10/Exiles | Found Prototype Processor 791 | -10/Exiles | Identified 0b10 Alert Chip 1076 | -10/Exiles | Discovered new exit (range 11) 1089 | -10/Exiles | Entered Mines 1089 | -9/Mines | Accompanied by 4 allies 1090 | -9/Mines | Assembled infested the area 1095 | -9/Mines | Assisted by a Guerilla fighting off Assembled 1246 | -9/Mines | Met a Derelict shopkeep closing up shop 1418 | -9/Mines | Learned Materials interactive machine intel 1496 | -9/Mines | Discovered new exit (range 14) 1523 | -9/Mines | Entered Materials 1523 | -8/Materials | Accompanied by 3 allies 1523 | -8/Materials | Evolved 4 slots: Propulsion x1, Utility x2, Weapon x1 1524 | -8/Materials | Identified exit to Factory 1526 | -8/Materials | Loaded intel: 19 interactive machine locations 1716 | -8/Materials | Discovered new exit (range 15) 1743 | -8/Materials | Entered Storage 1865 | -8/Storage | Lost 6 parts (1p1n1u3w) 2127 | -8/Storage | Used back door to open Recycling access 2127 | -8/Storage | Discovered new exit (range 5) 2160 | -8/Storage | Entered Recycling 2175 | -8/Recycling | Spotter reported a threat 2181 | -8/Recycling | Spotter reported a threat 2207 | -8/Recycling | Spotter reported a threat 2226 | -8/Recycling | Spotter reported a threat 2265 | -8/Recycling | Spotter reported a threat 2281 | -8/Recycling | Spotter reported a threat 2311 | -8/Recycling | Spotter reported a threat 2312 | -8/Recycling | Spotter reported a threat 2332 | -8/Recycling | Spotter reported a threat 2334 | -8/Recycling | Spotter reported a threat 2335 | -8/Recycling | Spotter reported a threat 2364 | -8/Recycling | Spotter reported a threat 2373 | -8/Recycling | Spotter reported a threat 2388 | -8/Recycling | Spotter reported a threat 2396 | -8/Recycling | Spotter reported a threat 2427 | -8/Recycling | Spotter reported a threat 2434 | -8/Recycling | Spotter reported a threat 2465 | -8/Recycling | Spotter reported a threat 2469 | -8/Recycling | Spotter reported a threat 2471 | -8/Recycling | Spotter reported a threat 2506 | -8/Recycling | Spotter reported a threat 2506 | -8/Recycling | Spotter reported a threat 2506 | -8/Recycling | Spotter reported a threat 2506 | -8/Recycling | Spotter reported a threat 2547 | -8/Recycling | Discovered new exit (range 6) 2551 | -8/Recycling | Spotter reported a threat 2551 | -8/Recycling | Spotter reported a threat 2558 | -8/Recycling | Spotter reported a threat 2570 | -8/Recycling | Spotter reported a threat 2604 | -8/Recycling | Spotter reported a threat 2604 | -8/Recycling | Spotter reported a threat 2611 | -8/Recycling | Spotter reported a threat 2613 | -8/Recycling | Build established: Commander-Mutant 2648 | -8/Recycling | Spotter reported a threat 2670 | -8/Recycling | Spotter reported a threat 2670 | -8/Recycling | Spotter reported a threat 2670 | -8/Recycling | Spotter reported a threat 2701 | -8/Recycling | Spotter reported a threat 2719 | -8/Recycling | Spotter reported a threat 2719 | -8/Recycling | Spotter reported a threat 2723 | -8/Recycling | Spotter reported a threat 2763 | -8/Recycling | Spotter reported a threat 2772 | -8/Recycling | Spotter reported a threat 2830 | -8/Recycling | Spotter reported a threat 2837 | -8/Recycling | Spotter reported a threat 2871 | -8/Recycling | Spotter reported a threat 2872 | -8/Recycling | Spotter reported a threat 2883 | -8/Recycling | Spotter reported a threat 2890 | -8/Recycling | Spotter reported a threat 2908 | -8/Recycling | Spotter reported a threat 2908 | -8/Recycling | Spotter reported a threat 2924 | -8/Recycling | Spotter reported a threat 2936 | -8/Recycling | Spotter reported a threat 2961 | -8/Recycling | Spotter reported a threat 2961 | -8/Recycling | Spotter reported a threat 2977 | -8/Recycling | Spotter reported a threat 3009 | -8/Recycling | Entered Factory 3009 | -6/Factory | Accompanied by 3 allies 3009 | -6/Factory | Evolved 4 slots: Propulsion x1, Utility x3 3550 | -6/Factory | Build established: Scavenger-Gunner 3659 | -6/Factory | Garrison activated, responded to threat 3719 | -6/Factory | Self-destructed Last Messages --------------- 03707_ Penetrated by Slug. 03708_ S-27 Virus destroyed. 03709_ K-01 Serf collects debris. 03710_ Slug penetrates Wall. 03711_ Penetrated by Slug. 03713_ Power Conduit explodes. 03713_ Hvy. Machine Gun destroyed. 03713_ Power Conduit explodes. 03713_ H-66 Slayer destroyed. 03713_ Terminal disabled. 03713_ Power Conduit explodes. 03713_ K-01 Serf collects debris. 03714_ Penetrated by Slug. 03715_ R-10 Processor collects Lgt. Fission Core. 03716_ K-01 Serf collects debris. 03718_ Penetrated by Slug. 03718_ Critical hit. 03718_ Hacking Suite destroyed. 03719_ R-10 Processor collects Gauss Rifle. 03719_ R-10 Processor collects Flexi-carbon Leg. Map ----- +----------------------------------------------------+ | ## """ ######### """"""" #?????????????? | | !/%"""" #???????# """"""" #?????????????? | | ##! """ !! #???????# !#?????????????? | | ?# """ !!! #???????# """"""" #?????????????? | | ## """" !!! #???????# """"""" #?????????????? | | ## #???????# """" #?????????????? | | ## #???????# """" #?????????????? | | ## #???????#! #?????????????? | | ## "T" #???????# #?????????????? | | ####+##########???????#####"/#######?????????????? | | #??? #????????????????????## #???????????????????? | | ???? #?????????????????????# #???????????????????? | | #### ####?################## ##############+###??? | | ?? | | #######????# ?? | | #??????????+ ?? | | #??????????# ?? | | #??????????# ?? | | #??????????# ########## ######+##########??? | | #??????????# ??# ## #???? #???##????? | | #??????????+? # ## #??? #? ????? | | #?????????????? ; ## ### # % ??????? | | #??????????+ ???# ##R # " ????????? | | #??????????# # ; #?????????? | | #??????????#g * % " % #?????????? | | #?????????????#;; @R " k #?????????? | | #??????????????# Rh #?????????? | | #?????????????# # #?????????? | | #?????????????# #+ ###????? #?????????? | | #?????????????## #?????????????????? | | #??????????????# ;#????????????????? | | #????????????? ;;; "#????????????????? | | #??????????? ; k #???????????????? | | #?????????? gg ! #???????????????? | | ???????????? g ###; % % #???????????????? | | ???????????? ]#####??## ???????????????? | | ????????????? ????????? ??????????????? | | ??????????????????????##; # ?????????????? | | ??????????????????????? # " ?????????????? | | ??????????????????????? # "" """????????????? | | ?????????????????????? ## # ???????????? | | ?????????????????????? ??###"+#########??????????? | | ?????????????????????""?????# ???????????????????? | | ?????????????????????"??????? ???????????????????? | | ?????????????????????????????????????????????????? | | ?????????????????????????????????????????????????? | | ?????????????????????????????????????????????????? | | ?????????????????????????????????????????????????? | | ?????????????????????????????????????????????????? | | ?????????????????????????????????????????????????? | +----------------------------------------------------+ Best States ------------- Heat Dissipation 45 Energy Generation 14 Energy Capacity 250 Matter Stores 300 Matter Capacity 300 Sight Range 20 Robot Scan Range 10 Terrain Scan Range 14 Terrain Scan Density 10 Jamming Range 8 Armor Coverage 225 Evasion (%) 44 Targeting Accuracy 6 Recoil Reduction 1 Offensive Hacking 10 Item Schematics ----------------- None Robot Schematics ------------------ None Fabricated ------------ Nothing Alien Tech Used ----------------- None Achievements -------------- None Challenges ------------ None Game ------ Seed PhaseImpactCharger Manual? 0 Play Time 00:51:46 Cumulative 71.9 hours Start 2022.02.06 @ 19:57:16 End 2022.02.06 @ 21:08:58 Sessions 3 Manual Loads 0 Difficulty Rogue Special Mode None Game No. 81 Rogue 81 Adventurer 0 Explorer 0 Win Type - Total 0 Types 0/0/0/0/0/0/0/0/0 Lore% 48 Gallery% 52 Achievement% 35 Wizard Run 0 Options --------- ASCII 0 Keyboard 0 Movement Mouse Keybinds 0 Fullscreen 0 Font 32/Terminus Map View 76x50 Tactical HUD 1 Map Filters NONE Filters NONE Steam 1 RUN: 72b384c6-410f-4537-9aea-8288570736fe